[Event "EYCC Open U8 2018"]
[Site "Riga"]
[Date "2018.08.28"]
[Round "8"]
[White "Vassis, Michail"]
[Black "Udipi, Kala Kishan"]
[Result "0-1"]
[ECO "A46"]
[WhiteElo "1218"]
[BlackElo "1756"]
[Annotator "NA RC"]
[PlyCount "138"]
[EventDate "2018.08.20"]
[EventType "swiss"]
[EventCountry "LAT"]
[SourceTitle "playchess.com"]
[Source "ChessBase"]
[SourceQuality "1"]
[TimeControl "40/5400+30:1800+30"]

1. Nf3 {[%emt 0:00:00]} Nf6 {[%emt 0:00:00]} 2. d4 {[%emt 0:00:00]} e6 {[%emt 0:00:00]} 3. e3 {[%emt 0:00:07]} d5 {[%emt 0:00:14]} 4. Be2 {[%emt 0:00:08]} Be7 {[%emt 0:00:07]} 5. O-O {[%emt 0:00:13]} O-O {[%emt 0:00:03]} 6. b3 {[%emt 0:00:07]} c5 {[%emt 0:00:37]} 7. Bb2 {[%emt 0:00:10]} cxd4 {[%emt 0:00:25]} 8. exd4 {[%emt 0:00:16]} b6 {[%emt 0:05:22]} 9. Nbd2 {[%emt 0:00:19]} Bb7 {[%emt 0:02:02]} 10. Ne5 {[%emt 0:00:32]} Nbd7 {[%emt 0:02:00]} 11. f4 {[%emt 0:01:02]} Rc8 {[%emt 0:17:17]} 12. c4 {[%emt 0:00:54]} Ne4 {[%emt 0:07:22]} 13. Nxe4 {[%emt 0:01:38]} dxe4 {[%emt 0:01:49]} 14. Qd2 {[%emt 0:05:31]} Nxe5 {[%emt 0:10:16]} 15. fxe5 {[%emt 0:01:01]} Bg5 {[%emt 0:04:03]} 16. Qc3 {[%emt 0:03:51]} Qe7 {[%emt 0:12:08]} 17. a4 {[%emt 0:00:49]} Rfd8 {[%emt 0:04:45]} 18. Ba3 {[%emt 0:02:22]} Qd7 {[%emt 0:00:14]} 19. Rad1 {[%emt 0:00:31]} Be7 {[%emt 0:11:20]} 20. c5 {[%emt 0:02:06]} Qc7 {[%emt 0:04:56]} 21. b4 {[%emt 0:00:34]} bxc5 {[%emt 0:05:03]} 22. bxc5 {[%emt 0:00:14]} Bc6 {[%emt 0:00:34]} 23. Bb5 {[%emt 0:01:09]} Rb8 {[%emt 0:00:57]} 24. Rb1 {[%emt 0:01:06]} Qd7 {[%emt 0:01:06]} 25. Bxc6 {[%emt 0:02:24]} Qxc6 {[%emt 0:00:23]} 26. Rb4 {[%emt 0:00:22]} Rxb4 {[%emt 0:00:47]} 27. Qxb4 {[%emt 0:00:49]} Qd7 {[%emt 0:00:41]} 28. Rd1 {[%emt 0:00:32]} Bg5 {[%emt 0:00:38]} 29. Bb2 {[%emt 0:01:13]} Bf4 {[%emt 0:00:59]} 30. Re1 {[%emt 0:01:22]} Qc6 {[%emt 0:02:37]} 31. Bc3 {[%emt 0:01:48]} Bg5 {[%emt 0:01:34]} 32. a5 {[%emt 0:01:21]} f6 {[%emt 0:01:03]} 33. exf6 {[%emt 0:06:09]} Bxf6 {[%emt 0:00:06]} 34. a6 {[%emt 0:02:17]} Rd7 {[%emt 0:01:44]} 35. Qb1 {[%emt 0:03:13]} Kf7 {[%emt 0:02:18]} 36. Qxe4 {[%emt 0:00:44]} Qxe4 {[%emt 0:00:24]} 37. Rxe4 {[%emt 0:00:23]} Rc7 {[%emt 0:00:07]} 38. Re2 {[%emt 0:00:51]} Rc6 {[%emt 0:00:03]} 39. Ra2 {[%emt 0:00:12]} Kg6 {[%emt 0:00:10]} 40. Kf2 {[%emt 0:00:00]} Kf5 {[%emt 0:00:00]} 41. Kf3 {[%emt 0:00:58]} h5 {[%emt 0:01:03]} 42. h3 {[%emt 0:02:25]} h4 {[%emt 0:00:50]} 43. Ra4 {[%emt 0:00:36]} g5 {[%emt 0:00:55]} 44. Bd2 {[%emt 0:01:13]} Bd8 {[%emt 0:08:17]} 45. Ba5 {[%emt 0:02:04]} Rxa6 {[%emt 0:00:52]} 46. Bxd8 {[%emt 0:01:45]} Rxa4 {[%emt 0:01:35]} 47. Ke3 {[%emt 0:00:50]} g4 {[%emt 0:06:01]} 48. hxg4+ {[%emt 0:01:42]} Kxg4 {[%emt 0:00:12]} 49. c6 {[%emt 0:00:18]} Rc4 {[%emt 0:00:33]} 50. c7 {[%emt 0:00:16]} a5 {[%emt 0:00:39]} 51. c8=Q {[%emt 0:00:23]} Rxc8 {[%emt 0:00:10]} 52. Bxa5 {[%emt 0:00:11]} Rc2 {[%emt 0:00:12]} 53. Ke4 {[%emt 0:02:39]} Rxg2 {[%emt 0:00:17]} 54. Ke5 {[%emt 0:00:14]} Re2+ {[%emt 0:00:11]} 55. Kf6 {[%emt 0:00:25]} h3 {[%emt 0:00:25]} 56. Bc7 {[%emt 0:00:16]} Kf3 {[%emt 0:00:13]} 57. Bh2 {[%emt 0:00:29]} Rxh2 {[%emt 0:00:07]} 58. Kxe6 {[%emt 0:00:08]} Rd2 {[%emt 0:00:09]} 59. d5 {[%emt 0:00:10]} Rxd5 {[%emt 0:00:07]} 60. Kxd5 {[%emt 0:00:06]} h2 {[%emt 0:00:12]} 61. Ke5 {[%emt 0:00:10]} h1=Q {[%emt 0:02:09]} 62. Kd4 {[%emt 0:00:14]} Qc1 {[%emt 0:00:20]} 63. Ke5 {[%emt 0:00:07]} Qc5+ {[%emt 0:00:06]} 64. Ke6 {[%emt 0:00:08]} Kf4 {[%emt 0:00:08]} 65. Kf6 {[%emt 0:00:15]} Qd6+ {[%emt 0:00:07]} 66. Kf7 {[%emt 0:00:17]} Kg5 {[%emt 0:00:05]} 67. Ke8 {[%emt 0:00:18]} Qc7 {[%emt 0:00:07]} 68. Kf8 {[%emt 0:00:06]} Kf6 {[%emt 0:00:07]} 69. Kg8 {[%emt 0:00:07]} Qg7# {[%emt 0:00:06]} 0-1

[Event "EYCC Open U8 2018"]
[Site "Riga"]
[Date "2018.08.28"]
[Round "8"]
[White "La Barbera, Manfredi"]
[Black "Yonal, Timur"]
[Result "0-1"]
[ECO "B18"]
[WhiteElo "1212"]
[BlackElo "1446"]
[Annotator "NA RC"]
[PlyCount "90"]
[EventDate "2018.08.20"]
[EventType "swiss"]
[EventCountry "LAT"]
[SourceTitle "playchess.com"]
[Source "ChessBase"]
[SourceQuality "1"]
[TimeControl "40/5400+30:1800+30"]

1. e4 {[%emt 0:00:00]} c6 {[%emt 0:00:00]} 2. d4 {[%emt 0:00:00]} d5 {[%emt 0:00:00]} 3. Nd2 {[%emt 0:03:42]} dxe4 {[%emt 0:00:47]} 4. Nxe4 {[%emt 0:00:49]} Bf5 {[%emt 0:00:09]} 5. Ng3 {[%emt 0:00:13]} Bg6 {[%emt 0:00:08]} 6. N1e2 {[%emt 0:00:09]} e6 {[%emt 0:00:11]} 7. Nf4 {[%emt 0:00:12]} Bd6 {[%emt 0:00:07]} 8. Nxg6 {[%emt 0:00:54]} hxg6 {[%emt 0:00:08]} 9. Ne4 {[%emt 0:00:12]} Be7 {[%emt 0:04:38]} 10. g3 {[%emt 0:01:11]} Nf6 {[%emt 0:00:15]} 11. Bg2 {[%emt 0:01:20]} Nxe4 {[%emt 0:01:23]} 12. Bxe4 {[%emt 0:00:29]} Bd6 {[%emt 0:00:27]} 13. O-O {[%emt 0:01:24]} Nd7 {[%emt 0:01:03]} 14. c3 {[%emt 0:01:01]} Nf6 {[%emt 0:00:20]} 15. Bg2 {[%emt 0:01:27]} Qa5 {[%emt 0:05:03]} 16. Qb3 {[%emt 0:05:51]} O-O-O {[%emt 0:01:54]} 17. Be3 {[%emt 0:03:13]} Qh5 {[%emt 0:12:18]} 18. h4 {[%emt 0:01:41]} Nd5 {[%emt 0:03:06]} 19. c4 {[%emt 0:05:26]} Nxe3 {[%emt 0:05:27]} 20. Qxe3 {[%emt 0:01:43]} Kb8 {[%emt 0:07:35]} 21. Qb3 Rc8 {[%emt 0:01:03]} 22. c5 {[%emt 0:07:06]} Be7 {[%emt 0:01:24]} 23. a4 {[%emt 0:03:07]} g5 {[%emt 0:00:31]} 24. a5 {[%emt 0:07:24]} a6 {[%emt 0:00:39]} 25. Bf3 {[%emt 0:02:52]} g4 {[%emt 0:00:28]} 26. Bg2 {[%emt 0:00:22]} g5 {[%emt 0:02:27]} 27. Ra3 {[%emt 0:12:46]} gxh4 {[%emt 0:02:08]} 28. gxh4 {[%emt 0:00:57]} Qxh4 {[%emt 0:02:05]} 29. Re1 {[%emt 0:05:10]} Qh2+ {[%emt 0:03:36]} 30. Kf1 {[%emt 0:01:08]} Bh4 {[%emt 0:01:13]} 31. Qb4 {[%emt 0:05:14]} Qf4 {[%emt 0:05:41]} 32. Re2 Qc1+ {[%emt 0:05:15]} 33. Re1 {[%emt 0:02:51]} Qf4 {[%emt 0:00:39]} 34. Re2 {[%emt 0:02:01]} Rh6 {[%emt 0:01:12]} 35. Rb3 {[%emt 0:01:06]} Qc7 {[%emt 0:00:12]} 36. Kg1 {[%emt 0:05:37]} f5 {[%emt 0:03:09]} 37. Rbe3 {[%emt 0:00:51]} f4 {[%emt 0:03:55]} 38. Rxe6 {[%emt 0:00:46]} Rxe6 {[%emt 0:00:06]} 39. Rxe6 {[%emt 0:01:00]} f3 {[%emt 0:00:10]} 40. Rh6 {[%emt 0:00:00]} Bg5 {[%emt 0:00:00]} 41. Rg6 {[%emt 0:00:51]} fxg2 {[%emt 0:08:25]} 42. Rxg5 {[%emt 0:02:36]} Rh8 {[%emt 0:00:11]} 43. Re5 {[%emt 0:01:07]} Qh7 {[%emt 0:00:13]} 44. Kxg2 {[%emt 0:02:23]} Qh1+ {[%emt 0:00:20]} 45. Kg3 {[%emt 0:00:49]} Qf3# {[%emt 0:00:04]} 0-1

[Event "EYCC Open U8 2018"]
[Site "Riga"]
[Date "2018.08.29"]
[Round "9"]
[White "Udipi, Kala Kishan"]
[Black "Gordeev, Denis"]
[Result "1/2-1/2"]
[ECO "A43"]
[WhiteElo "1756"]
[BlackElo "1333"]
[Annotator "NA"]
[PlyCount "119"]
[EventDate "2018.08.20"]
[EventType "swiss"]
[EventCountry "LAT"]
[SourceTitle "playchess.com"]
[Source "ChessBase"]
[SourceQuality "1"]
[TimeControl "40/5400+30:1800+30"]

1. d4 {[%emt 0:00:00]} c5 {[%emt 0:00:00]} 2. d5 {[%emt 0:00:00]} g6 {[%emt 0:00:17]} 3. Nf3 {[%emt 0:01:41]} Bg7 {[%emt 0:00:30]} 4. e4 {[%emt 0:01:50]} d6 {[%emt 0:00:12]} 5. c4 {[%emt 0:01:05]} e6 {[%emt 0:00:28]} 6. Be2 {[%emt 0:01:32]} Ne7 {[%emt 0:00:25]} 7. Nc3 {[%emt 0:05:22]} O-O {[%emt 0:01:26]} 8. O-O {[%emt 0:07:14]} exd5 {[%emt 0:03:29]} 9. cxd5 {[%emt 0:02:19]} a6 {[%emt 0:05:50]} 10. a4 {[%emt 0:01:05]} Bg4 {[%emt 0:01:22]} 11. Qb3 {[%emt 0:08:57]} Qc7 {[%emt 0:01:23]} 12. h3 {[%emt 0:01:50]} Bxf3 {[%emt 0:00:24]} 13. Bxf3 {[%emt 0:00:25]} Nd7 {[%emt 0:00:57]} 14. Be2 {[%emt 0:05:06]} f5 {[%emt 0:03:42]} 15. Bg5 {[%emt 0:09:47]} Rae8 {[%emt 0:01:53]} 16. Bxe7 {[%emt 0:01:03]} Rxe7 {[%emt 0:00:12]} 17. Bf3 {[%emt 0:11:51]} fxe4 {[%emt 0:05:58]} 18. Nxe4 {[%emt 0:03:26]} Ne5 {[%emt 0:01:42]} 19. Be2 {[%emt 0:00:57]} Rb8 {[%emt 0:04:39]} 20. Ng5 {[%emt 0:04:30]} Rbe8 {[%emt 0:03:13]} 21. Ne6 {[%emt 0:01:12]} Qd7 {[%emt 0:00:36]} 22. f4 {[%emt 0:01:22]} Nf7 {[%emt 0:00:20]} 23. Bg4 {[%emt 0:00:18]} Bf6 {[%emt 0:02:06]} 24. Ng7 {[%emt 0:06:25]} Bd4+ {[%emt 0:00:45]} 25. Kh1 {[%emt 0:00:14]} Qd8 {[%emt 0:00:48]} 26. Nxe8 {[%emt 0:03:09]} Qxe8 {[%emt 0:00:16]} 27. Be6 {[%emt 0:02:19]} Kh8 {[%emt 0:01:09]} 28. Rae1 {[%emt 0:02:00]} Nh6 {[%emt 0:01:23]} 29. Qg3 {[%emt 0:03:36]} Bxb2 {[%emt 0:02:04]} 30. Qh4 {[%emt 0:00:32]} Bg7 {[%emt 0:01:05]} 31. Bd7 {[%emt 0:02:00]} Rxe1 {[%emt 0:01:14]} 32. Bxe8 {[%emt 0:00:21]} Rxf1+ {[%emt 0:00:14]} 33. Kh2 {[%emt 0:00:10]} Bf8 {[%emt 0:02:55]} 34. Qf6+ {[%emt 0:00:30]} Bg7 {[%emt 0:01:17]} 35. Qxd6 {[%emt 0:03:58]} c4 {[%emt 0:01:12]} 36. Qb8 {[%emt 0:02:21]} Bf8 {[%emt 0:00:34]} 37. Bb5 {[%emt 0:00:55]} Kg7 {[%emt 0:01:25]} 38. Qxb7+ {[%emt 0:00:08]} Nf7 {[%emt 0:00:57]} 39. Bxc4 {[%emt 0:01:13]} Rxf4 {[%emt 0:00:49]} 40. Qxa6 {[%emt 0:00:00]} Bd6 {[%emt 0:00:00]} 41. Kh1 {[%emt 0:04:19]} Rd4 {[%emt 0:01:19]} 42. g4 {[%emt 0:01:23]} Rd1+ {[%emt 0:00:34]} 43. Kg2 {[%emt 0:00:11]} Rd2+ {[%emt 0:00:36]} 44. Kf3 {[%emt 0:02:06]} g5 {[%emt 0:01:40]} 45. Ke4 {[%emt 0:05:52]} Bc5 {[%emt 0:01:54]} 46. Kf5 {[%emt 0:04:18]} Rf2+ {[%emt 0:00:54]} 47. Ke4 {[%emt 0:00:23]} Rf4+ {[%emt 0:10:10]} 48. Kd3 {[%emt 0:00:21]} Ne5+ {[%emt 0:00:56]} 49. Kc3 {[%emt 0:01:10]} Rxc4+ {[%emt 0:00:37]} 50. Qxc4 {[%emt 0:07:55]} Nxc4 {[%emt 0:00:18]} 51. Kxc4 {[%emt 0:00:05]} Ba7 {[%emt 0:00:30]} 52. Kb5 {[%emt 0:00:06]} Kf7 {[%emt 0:00:07]} 53. Kc6 {[%emt 0:00:08]} Bb8 {[%emt 0:00:26]} 54. d6 {[%emt 0:00:51]} Ke8 {[%emt 0:00:13]} 55. d7+ {[%emt 0:00:08]} Kd8 {[%emt 0:00:14]} 56. a5 {[%emt 0:00:27]} Ba7 {[%emt 0:03:54]} 57. a6 {[%emt 0:00:24]} Be3 {[%emt 0:00:07]} 58. Kd6 {[%emt 0:00:34]} Bf2 {[%emt 0:04:23]} 59. Ke6 {[%emt 0:00:18]} h6 {[%emt 0:01:28]} 60. Kd6 {[%emt 0:01:42]} 1/2-1/2

[Event "EYCC Open U8 2018"]
[Site "Riga"]
[Date "2018.08.29"]
[Round "9"]
[White "Azadaliyev, Jahandar"]
[Black "Averin, Nikolay"]
[Result "1-0"]
[ECO "D27"]
[WhiteElo "1732"]
[BlackElo "1438"]
[Annotator "NA"]
[PlyCount "147"]
[EventDate "2018.08.20"]
[EventType "swiss"]
[EventCountry "LAT"]
[SourceTitle "playchess.com"]
[Source "ChessBase"]
[SourceQuality "1"]
[TimeControl "40/5400+30:1800+30"]

1. d4 {[%emt 0:00:00]} d5 {[%emt 0:00:00]} 2. c4 {[%emt 0:00:00]} dxc4 {[%emt 0:00:00]} 3. e3 {[%emt 0:00:00]} Nf6 {[%emt 0:00:00]} 4. Bxc4 {[%emt 0:00:00]} e6 {[%emt 0:00:00]} 5. Nf3 {[%emt 0:00:00]} c5 {[%emt 0:00:05]} 6. O-O {[%emt 0:00:00]} a6 {[%emt 0:01:22]} 7. a4 {[%emt 0:00:08]} Nc6 {[%emt 0:00:56]} 8. Nc3 {[%emt 0:03:29]} Be7 {[%emt 0:01:02]} 9. d5 {[%emt 0:19:21]} exd5 {[%emt 0:00:54]} 10. Bxd5 {[%emt 0:00:21]} O-O {[%emt 0:03:12]} 11. e4 {[%emt 0:01:56]} Qc7 {[%emt 0:25:53]} 12. h3 {[%emt 0:02:50]} h6 {[%emt 0:20:28]} 13. Be3 {[%emt 0:00:54]} Re8 {[%emt 0:15:02]} 14. Nd2 {[%emt 0:01:38]} Nb4 {[%emt 0:02:54]} 15. Nc4 {[%emt 0:04:41]} Bd7 {[%emt 0:12:12]} 16. Qe2 {[%emt 0:01:25]} Rad8 {[%emt 0:02:04]} 17. Qf3 {[%emt 0:00:44]} b6 {[%emt 0:05:44]} 18. Bf4 {[%emt 0:00:23]} Qa7 {[%emt 0:00:20]} 19. Qg3 {[%emt 0:00:41]} Nh5 {[%emt 0:02:14]} 20. Qf3 {[%emt 0:00:32]} Nxf4 {[%emt 0:00:55]} 21. Qxf4 {[%emt 0:00:14]} Rf8 {[%emt 0:00:21]} 22. Rad1 {[%emt 0:04:09]} Bc8 {[%emt 0:02:28]} 23. e5 {[%emt 0:01:05]} Bg5 {[%emt 0:01:26]} 24. Qg3 {[%emt 0:00:11]} Nxd5 {[%emt 0:01:19]} 25. Nxd5 {[%emt 0:00:10]} Be6 {[%emt 0:00:32]} 26. Nd6 {[%emt 0:00:18]} f5 {[%emt 0:00:36]} 27. f4 {[%emt 0:09:01]} Bxd5 {[%emt 0:00:27]} 28. fxg5 {[%emt 0:01:06]} Be6 {[%emt 0:00:20]} 29. gxh6 {[%emt 0:00:09]} Qe7 {[%emt 0:00:27]} 30. Qg6 {[%emt 0:00:26]} f4 {[%emt 0:00:33]} 31. hxg7 {[%emt 0:00:14]} Qxg7 {[%emt 0:00:52]} 32. Qxe6+ {[%emt 0:00:07]} Kh8 {[%emt 0:00:07]} 33. Nf7+ {[%emt 0:00:27]} Qxf7 {[%emt 0:00:07]} 34. Qxf7 {[%emt 0:00:04]} Rxf7 {[%emt 0:00:04]} 35. Rxd8+ {[%emt 0:00:07]} Kg7 {[%emt 0:00:16]} 36. e6 {[%emt 0:00:03]} Re7 {[%emt 0:00:15]} 37. Rd7 {[%emt 0:00:28]} Kf6 {[%emt 0:00:06]} 38. Rxe7 {[%emt 0:00:04]} Kxe7 {[%emt 0:00:07]} 39. Rxf4 {[%emt 0:00:03]} Kxe6 {[%emt 0:00:09]} 40. h4 {[%emt 0:00:00]} Ke5 {[%emt 0:00:00]} 41. Rf3 {[%emt 0:00:21]} b5 {[%emt 0:00:20]} 42. axb5 {[%emt 0:00:04]} axb5 {[%emt 0:00:01]} 43. h5 {[%emt 0:00:07]} c4 {[%emt 0:00:12]} 44. h6 {[%emt 0:00:07]} b4 {[%emt 0:00:03]} 45. h7 {[%emt 0:00:04]} c3 {[%emt 0:00:11]} 46. bxc3 {[%emt 0:00:04]} b3 {[%emt 0:00:08]} 47. c4 {[%emt 0:00:06]} b2 {[%emt 0:00:01]} 48. Rb3 {[%emt 0:00:23]} b1=Q+ {[%emt 0:00:10]} 49. Rxb1 {[%emt 0:00:19]} Kd4 {[%emt 0:00:04]} 50. Rd1+ {[%emt 0:00:07]} Kxc4 {[%emt 0:00:02]} 51. Rd4+ {[%emt 0:00:00]} Kxd4 {[%emt 0:00:01]} 52. h8=Q+ {[%emt 0:00:14]} Kd5 {[%emt 0:00:11]} 53. Qf6 {[%emt 0:01:13]} Ke4 {[%emt 0:00:01]} 54. Qd6 {[%emt 0:00:19]} Kf5 {[%emt 0:00:03]} 55. Qe7 {[%emt 0:00:06]} Kf4 {[%emt 0:00:01]} 56. Kf2 {[%emt 0:00:07]} Kg4 {[%emt 0:00:03]} 57. Qf6 {[%emt 0:00:05]} Kh5 {[%emt 0:00:07]} 58. Qg7 {[%emt 0:00:06]} Kh4 {[%emt 0:00:02]} 59. Qh6+ {[%emt 0:00:06]} Kg4 {[%emt 0:00:09]} 60. Ke3 {[%emt 0:00:07]} Kf5 {[%emt 0:00:06]} 61. g4+ {[%emt 0:00:04]} Ke5 {[%emt 0:00:28]} 62. Qg6 {[%emt 0:00:07]} Kd5 {[%emt 0:00:25]} 63. Qe4+ {[%emt 0:00:08]} Kc5 {[%emt 0:00:02]} 64. g5 {[%emt 0:00:05]} Kb5 {[%emt 0:01:22]} 65. Qd4 {[%emt 0:00:11]} Kc6 {[%emt 0:00:06]} 66. Qe5 {[%emt 0:00:05]} Kb6 {[%emt 0:00:09]} 67. Qd5 {[%emt 0:00:10]} Ka6 {[%emt 0:00:01]} 68. Qc5 {[%emt 0:00:12]} Kb7 {[%emt 0:00:05]} 69. Qd6 {[%emt 0:00:10]} Ka7 {[%emt 0:00:13]} 70. Qc6 {[%emt 0:00:06]} Kb8 {[%emt 0:00:35]} 71. Qd7 {[%emt 0:00:04]} Ka8 {[%emt 0:00:02]} 72. g6 {[%emt 0:00:05]} Kb8 {[%emt 0:00:15]} 73. g7 {[%emt 0:00:01]} Ka8 {[%emt 0:11:46]} 74. g8=R# {[%emt 0:00:15]} 1-0

[Event "EYCC Open U8 2018"]
[Site "Riga"]
[Date "2018.08.29"]
[Round "9"]
[White "Golovchenko, Bogdan"]
[Black "Hajdu, Marton Abris"]
[Result "1-0"]
[ECO "A34"]
[WhiteElo "1560"]
[BlackElo "1694"]
[Annotator "NA"]
[PlyCount "49"]
[EventDate "2018.08.20"]
[EventType "swiss"]
[EventCountry "LAT"]
[SourceTitle "playchess.com"]
[Source "ChessBase"]
[SourceQuality "1"]
[TimeControl "40/5400+30:1800+30"]

1. c4 {[%emt 0:00:00]} Nf6 {[%emt 0:00:00]} 2. Nc3 {[%emt 0:00:00]} c5 {[%emt 0:00:07]} 3. Nf3 {[%emt 0:00:00]} d5 {[%emt 0:00:24]} 4. cxd5 {[%emt 0:00:41]} Nxd5 {[%emt 0:00:12]} 5. g3 {[%emt 0:00:30]} Nc6 {[%emt 0:00:12]} 6. Bg2 {[%emt 0:00:19]} Nc7 {[%emt 0:00:07]} 7. O-O {[%emt 0:00:34]} e5 {[%emt 0:00:16]} 8. d3 {[%emt 0:01:22]} Be6 {[%emt 0:01:10]} 9. Ng5 {[%emt 0:03:29]} Bd7 10. Qb3 {[%emt 0:01:59]} c4 {[%emt 0:21:02]} 11. Qxc4 {[%emt 0:00:49]} Be6 {[%emt 0:02:26]} 12. Nxe6 {[%emt 0:00:16]} fxe6 {[%emt 0:04:38]} 13. Bxc6+ {[%emt 0:00:21]} bxc6 {[%emt 0:00:11]} 14. Qxc6+ {[%emt 0:00:05]} Kf7 {[%emt 0:00:08]} 15. Ne4 {[%emt 0:01:55]} Be7 {[%emt 0:01:41]} 16. Bd2 {[%emt 0:10:10]} h5 {[%emt 0:00:29]} 17. f4 {[%emt 0:00:53]} h4 {[%emt 0:00:45]} 18. fxe5+ {[%emt 0:19:42]} Kg8 {[%emt 0:00:24]} 19. Be3 {[%emt 0:03:47]} hxg3 {[%emt 0:00:27]} 20. Nxg3 {[%emt 0:03:17]} Rc8 {[%emt 0:01:41]} 21. Rac1 {[%emt 0:02:41]} Bg5 {[%emt 0:02:14]} 22. Bxg5 {[%emt 0:03:29]} Qxg5 {[%emt 0:00:08]} 23. Qd7 {[%emt 0:01:33]} Qe3+ {[%emt 0:00:41]} 24. Kg2 {[%emt 0:00:08]} Nd5 {[%emt 0:03:07]} 25. Rxc8+ {[%emt 0:01:45]} 1-0

[Event "EYCC Open U8 2018"]
[Site "Riga"]
[Date "2018.08.29"]
[Round "9"]
[White "Yonal, Timur"]
[Black "Durucay, Uygar"]
[Result "1-0"]
[ECO "C79"]
[WhiteElo "1446"]
[BlackElo "1263"]
[Annotator "NA"]
[PlyCount "79"]
[EventDate "2018.08.20"]
[EventType "swiss"]
[EventCountry "LAT"]
[SourceTitle "playchess.com"]
[Source "ChessBase"]
[SourceQuality "1"]
[TimeControl "40/5400+30:1800+30"]

1. e4 {[%emt 0:00:00]} e5 {[%emt 0:00:00]} 2. Nf3 {[%emt 0:00:00]} Nc6 {[%emt 0:00:32]} 3. Bb5 {[%emt 0:00:00]} a6 {[%emt 0:00:09]} 4. Ba4 {[%emt 0:00:00]} Nf6 {[%emt 0:00:11]} 5. O-O {[%emt 0:00:40]} d6 {[%emt 0:00:21]} 6. d3 {[%emt 0:00:29]} Be7 {[%emt 0:00:34]} 7. c3 {[%emt 0:00:28]} b5 {[%emt 0:00:56]} 8. Bb3 {[%emt 0:00:16]} O-O {[%emt 0:00:21]} 9. a4 {[%emt 0:00:09]} Bg4 {[%emt 0:01:11]} 10. h3 {[%emt 0:00:32]} Bd7 {[%emt 0:04:52]} 11. Nbd2 {[%emt 0:00:57]} b4 {[%emt 0:02:36]} 12. Nc4 {[%emt 0:14:25]} Be6 {[%emt 0:12:12]} 13. Bd2 {[%emt 0:18:48]} Rb8 {[%emt 0:05:34]} 14. Bc2 {[%emt 0:06:17]} Nd7 {[%emt 0:06:04]} 15. Ne3 {[%emt 0:05:18]} bxc3 {[%emt 0:06:08]} 16. bxc3 {[%emt 0:00:51]} Nc5 {[%emt 0:05:05]} 17. d4 Nb3 {[%emt 0:00:10]} 18. d5 {[%emt 0:01:00]} Nxa1 {[%emt 0:00:17]} 19. Qxa1 {[%emt 0:00:04]} Bxh3 {[%emt 0:00:39]} 20. gxh3 {[%emt 0:01:04]} Na7 {[%emt 0:03:37]} 21. Kh2 {[%emt 0:01:06]} g6 {[%emt 0:01:42]} 22. Rg1 {[%emt 0:05:06]} Kh8 {[%emt 0:00:58]} 23. c4 {[%emt 0:03:09]} Bf6 {[%emt 0:00:36]} 24. c5 {[%emt 0:04:29]} dxc5 {[%emt 0:01:58]} 25. Ng4 {[%emt 0:01:15]} Bg7 {[%emt 0:00:30]} 26. Ngxe5 {[%emt 0:01:39]} Qd6 {[%emt 0:01:05]} 27. Bf4 {[%emt 0:00:16]} Qf6 {[%emt 0:00:15]} 28. Bg3 {[%emt 0:01:22]} Qe7 {[%emt 0:00:50]} 29. Qa3 {[%emt 0:03:44]} Rb6 {[%emt 0:03:33]} 30. Rd1 {[%emt 0:08:20]} Nc8 {[%emt 0:02:09]} 31. Nc4 {[%emt 0:02:53]} Rb4 {[%emt 0:02:06]} 32. d6 {[%emt 0:00:37]} cxd6 {[%emt 0:02:17]} 33. Nxd6 {[%emt 0:00:31]} Qe6 {[%emt 0:02:51]} 34. Ng5 {[%emt 0:01:25]} Qf6 {[%emt 0:00:54]} 35. Ngxf7+ {[%emt 0:00:14]} Rxf7 {[%emt 0:00:15]} 36. Nxf7+ {[%emt 0:00:05]} Qxf7 {[%emt 0:00:24]} 37. Rd8+ {[%emt 0:00:08]} Bf8 {[%emt 0:00:13]} 38. Rxc8 {[%emt 0:00:47]} Kg7 {[%emt 0:01:01]} 39. Qc3+ {[%emt 0:00:00]} Kg8 {[%emt 0:00:00]} 40. Kg2 {[%emt 0:00:00]} 1-0